{"text_format":"1","workbook":"xlsx","n_sheets":2,"sheets":["Hárok1","Hárok2"],"not_rendered":{"charts":0,"images":0,"macros":1,"external_links":0,"defined_names":0,"comments":0,"pivot_tables":0},"unopened":[],"bounds":{"document_bytes":16777216,"sheet_cells":100000,"rows_first":2000,"rows_last":500,"rows_between":2000,"halvings":0,"cell_chars":16384,"cell_head_chars":4096},"cells_cut":0,"cells_raw":0,"read":"whole","date_system":"1900"}

{"sheet":"Hárok1","index":0,"n_rows":8,"n_cols":4,"rows_kept":8,"cut":false,"hidden":false,"merged":[]}
["abc def,ghij 123;klmnopq rstu",{"$f":"IF(A1=\"\",\"\",IFERROR(LEFT(A1,FIND(\",\",A1)-1),A1))","v":"abc def"},{"$f":"IF(LEN(A1)>LEN(B1)+1,IFERROR(MID(A1,LEN(B1)+2,FIND(\";\",RIGHT(A1,LEN(A1)-(LEN(B1)+1)))-1),RIGHT(A1,LEN(A1)-(LEN(B1)+1))),\"\")","v":"ghij 123"},{"$f":"IF(LEN(A1)>LEN(B1)+IF(C1=\"\",0,LEN(C1)+1),RIGHT(A1,LEN(A1)-(LEN(B1)+IF(C1=\"\",0,LEN(C1)+1))-1),\"\")","v":"klmnopq rstu"}]
["Dobrý den, je možné nějak rozdělit text ve sloupci A;",{"$f":"IF(A2=\"\",\"\",IFERROR(LEFT(A2,FIND(\",\",A2)-1),A2))","v":"Dobrý den"},{"$f":"IF(LEN(A2)>LEN(B2)+1,IFERROR(MID(A2,LEN(B2)+2,FIND(\";\",RIGHT(A2,LEN(A2)-(LEN(B2)+1)))-1),RIGHT(A2,LEN(A2)-(LEN(B2)+1))),\"\")","v":" je možné nějak rozdělit text ve sloupci A"},{"$f":"IF(LEN(A2)>LEN(B2)+IF(C2=\"\",0,LEN(C2)+1),RIGHT(A2,LEN(A2)-(LEN(B2)+IF(C2=\"\",0,LEN(C2)+1))-1),\"\")","v":""}]
["Ale to rozhodí jen celý sloupce A podle čárek","Ale to rozhodí jen celý sloupce A podle čárek","",""]
["já bych potřeboval postupovat postupně, s tím že někdy je oddělovač čárka","já bych potřeboval postupovat postupně"," s tím že někdy je oddělovač čárka",""]
["a někdy středník;...Děkuji za odpověď","a někdy středník;...Děkuji za odpověď","",""]
["(počet řádku, předem nevím, mění se)","(počet řádku"," předem nevím, mění se)",""]
["a,b,c;d;e","a","b,c",{"$f":"IF(LEN(A7)>LEN(B7)+IF(C7=\"\",0,LEN(C7)+1),RIGHT(A7,LEN(A7)-(LEN(B7)+IF(C7=\"\",0,LEN(C7)+1))-1),\"\")","v":"d;e"}]
[null,"",{"$f":"IF(LEN(A8)>LEN(B8)+1,IFERROR(MID(A8,LEN(B8)+2,FIND(\";\",RIGHT(A8,LEN(A8)-(LEN(B8)+1)))-1),RIGHT(A8,LEN(A8)-(LEN(B8)+1))),\"\")","v":""},{"$f":"IF(LEN(A8)>LEN(B8)+IF(C8=\"\",0,LEN(C8)+1),RIGHT(A8,LEN(A8)-(LEN(B8)+IF(C8=\"\",0,LEN(C8)+1))-1),\"\")","v":""}]

{"sheet":"Hárok2","index":1,"n_rows":7,"n_cols":3,"rows_kept":7,"cut":false,"hidden":false,"merged":[]}
["abc def","ghij 123","klmnopq rstu"]
["Dobrý den"," je možné nějak rozdělit text ve sloupci A"]
["Ale to rozhodí jen celý sloupce A podle čárek"]
["já bych potřeboval postupovat postupně"," s tím že někdy je oddělovač čárka"]
["a někdy středník;...Děkuji za odpověď"]
["(počet řádku"," předem nevím, mění se)"]
["a","b,c","d;e"]